fUSD/lending_fUSD_20260528
["ID","MTS","AMOUNT","RATE_DAILY","PERIOD"]
[423180392,1779907843000,-17448.56359983,0.0001521,2]
[423180408,1779907843000,-1168.49385255,0.0001531,2]
[423180398,1779907843000,-3746.13,0.0001531,2]
[423180412,1779907843000,-353.36,0.0001531,2]
[423180413,1779907843000,-3016.09,0.0001531,2]
[423180411,1779907843000,-14184.25,0.0001531,2]
[423180429,1779907843000,-1587.884161,0.00016561,2]
[423180410,1779907843000,-9367.83506646,0.0001531,2]
[423180430,1779907843000,-500.0,0.00016618,2]
[423180428,1779907843000,-478112.3233265,0.0001652,2]
[423180424,1779907843000,-743.94247801,0.00016444,2]
[423180427,1779907843000,-586.06,0.00016519,2]
[423180419,1779907843000,-2351.0,0.00016089,2]
[423180426,1779907843000,-586.06,0.00016519,2]
[423180422,1779907843000,-2000.0,0.0001637,2]
[423180417,1779907843000,-300.0,0.00016,2]
[423180420,1779907843000,-586.06,0.00016115,2]
[423180416,1779907843000,-587.0,0.00015982,2]
[423180421,1779907843000,-210.11421574,0.00016122,2]
[423180418,1779907843000,-11300.21070917,0.00016016,2]
[423180425,1779907843000,-500.0,0.00016499,2]
[423180415,1779907843000,-9999.99,0.0001531,2]
[423180423,1779907843000,-993.2,0.00016438,2]
[423180414,1779907843000,-18232.27,0.0001531,2]
[423180463,1779907844000,-17448.56359982,0.00019686,2]
[423180461,1779907844000,-500.0,0.00019467,2]
[423180458,1779907844000,-278.0,0.00019397,2]
[423180453,1779907844000,-993.2,0.0001841,2]
[423180459,1779907844000,-500.0,0.00019467,2]
[423180456,1779907844000,-11300.21070912,0.00019193,2]
[423180466,1779907844000,-3217.0,0.00019866,5]
[423180462,1779907844000,-4609.0,0.00019468,2]
[423180465,1779907844000,-4025.0,0.00019866,5]
[423180475,1779907844000,-511.0,0.0002,2]
[423180469,1779907844000,-278.0,0.0002,2]
[423180468,1779907844000,-379.0,0.0002,2]
[423180470,1779907844000,-335.0,0.0002,2]
[423180471,1779907844000,-333.0,0.0002,2]
[423180474,1779907844000,-229.0,0.0002,2]
[423180472,1779907844000,-531.0,0.0002,2]
[423180473,1779907844000,-155.0,0.0002,2]
[423180452,1779907844000,-439.82,0.0001835,2]
[423180476,1779907844000,-317.0,0.0002,2]
[423180477,1779907844000,-290.0,0.0002,2]
[423180485,1779907844000,-993.2,0.00020381,2]
[423180467,1779907844000,-152.74589189,0.00019913,2]
[423180455,1779907844000,-31737.63388309,0.00019154,2]
[423180449,1779907844000,-350.0,0.00018,2]
[423180464,1779907844000,-439.82,0.00019726,2]
[423180480,1779907844000,-301.0,0.0002,2]
[423180432,1779907844000,-180.50030314,0.00016618,2]
[423180431,1779907844000,-500.0,0.00016618,2]
[423180433,1779907844000,-600.0,0.000168,6]
[423180436,1779907844000,-9794.42,0.00016922,2]
[423180435,1779907844000,-1200.0,0.000169,6]
[423180434,1779907844000,-31737.63388309,0.00016841,2]
[423180438,1779907844000,-565.25,0.00017259,2]
[423180437,1779907844000,-895.79954609,0.00017049,2]
[423180443,1779907844000,-2000.0,0.00017676,2]
[423180440,1779907844000,-17448.56359982,0.00017448,2]
[423180448,1779907844000,-586.06,0.00017931,2]
[423180441,1779907844000,-823.0,0.00017522,2]
[423180444,1779907844000,-3292.0,0.00017698,2]
[423180445,1779907844000,-236.53,0.00017738,2]
[423180439,1779907844000,-7150.99,0.00017339,2]
[423180442,1779907844000,-500.0,0.00017676,2]
[423180450,1779907844000,-167.68,0.00018053,2]
[423180446,1779907844000,-232.71473912,0.00017861,2]
[423180447,1779907844000,-759.77763547,0.0001788,2]
[423180454,1779907844000,-439.82,0.00018808,2]
[423180460,1779907844000,-500.0,0.00019467,2]
[423180451,1779907844000,-2000.0,0.00018189,2]
[423180457,1779907844000,-439.82,0.00019267,2]
[423180478,1779907844000,-1200.0,0.0002,2]
[423180496,1779907844000,-350.0,0.00020957,2]
[423180481,1779907844000,-172.0,0.0002,2]
[423180513,1779907844000,-1407.64099139,0.000211,2]
[423180514,1779907844000,-200.0,0.00021125,2]
[423180517,1779907844000,-215.46156935,0.00021188,2]
[423180510,1779907844000,-350.0,0.00021081,2]
[423180515,1779907844000,-350.0,0.00021129,2]
[423180512,1779907844000,-794.26208108,0.000211,2]
[423180516,1779907844000,-160.0,0.00021187,2]
[423180518,1779907844000,-208.97895572,0.00021188,2]
[423180519,1779907844000,-1428.38747117,0.00021248,2]
[423180523,1779907844000,-350.0,0.0002129,2]
[423180511,1779907844000,-1545.9448655,0.000211,2]
[423180526,1779907844000,-1407.64099139,0.000213,2]
[423180521,1779907844000,-2080.17592889,0.00021248,2]
[423180527,1779907844000,-719.04747942,0.00021303,2]
[423180525,1779907844000,-794.26208108,0.000213,2]
[423180524,1779907844000,-1545.9448655,0.000213,2]
[423180529,1779907844000,-2024.27479,0.0002134,2]
[423180528,1779907844000,-2024.27479,0.0002134,2]
[423180531,1779907844000,-2024.2748,0.0002134,2]
[423180530,1779907844000,-2024.2748,0.0002134,2]
[423180532,1779907844000,-1071.02392,0.0002134,2]
[423180483,1779907844000,-2000.0,0.00020008,2]
[423180520,1779907844000,-693.39197629,0.00021248,2]
[423180509,1779907844000,-3861.6880059,0.0002107,2]
[423180522,1779907844000,-350.0,0.00021264,2]
[423180508,1779907844000,-301.0,0.00021,2]
[423180482,1779907844000,-22304.72,0.0002,2]
[423180507,1779907844000,-1200.0,0.00021,2]
[423180479,1779907844000,-400.0,0.0002,2]
[423180484,1779907844000,-439.82,0.00020185,2]
[423180486,1779907844000,-501.4576724,0.00020488,2]
[423180488,1779907844000,-350.0,0.00020614,2]
[423180487,1779907844000,-350.0,0.00020606,2]
[423180490,1779907844000,-794.26208108,0.000207,2]
[423180493,1779907844000,-1545.9448655,0.000209,2]
[423180491,1779907844000,-1407.64099139,0.000207,2]
[423180492,1779907844000,-350.0,0.00020737,2]
[423180494,1779907844000,-794.26208108,0.000209,2]
[423180489,1779907844000,-1545.9448655,0.000207,2]
[423180495,1779907844000,-1407.64099139,0.000209,2]
[423180500,1779907844000,-333.0,0.00021,2]
[423180503,1779907844000,-229.0,0.00021,2]
[423180504,1779907844000,-511.0,0.00021,2]
[423180501,1779907844000,-531.0,0.00021,2]
[423180505,1779907844000,-317.0,0.00021,2]
[423180502,1779907844000,-157.05429665,0.00021,2]
[423180499,1779907844000,-335.0,0.00021,2]
[423180506,1779907844000,-290.0,0.00021,2]
[423180498,1779907844000,-278.0,0.00021,2]
[423180497,1779907844000,-379.0,0.00021,2]
[423180573,1779907845000,-500.0,0.00021643,2]
[423180569,1779907845000,-500.0,0.00021643,2]
[423180564,1779907845000,-500.0,0.00021643,2]
[423180565,1779907845000,-314.3142587,0.00021643,2]
[423180567,1779907845000,-500.0,0.00021643,2]
[423180571,1779907845000,-500.0,0.00021643,2]
[423180574,1779907845000,-500.0,0.00021643,2]
[423180572,1779907845000,-500.0,0.00021643,2]
[423180568,1779907845000,-500.0,0.00021643,2]
[423180570,1779907845000,-586.06,0.00021643,2]
[423180566,1779907845000,-500.0,0.00021643,2]
[423180575,1779907845000,-350.0,0.00021673,2]
[423180587,1779907845000,-2000.0,0.00021827,2]
[423180578,1779907845000,-200.0,0.00021735,2]
[423180580,1779907845000,-1481.2378076,0.00021796,2]
[423180582,1779907845000,-997.16350561,0.00021798,2]
[423180581,1779907845000,-2157.14243826,0.00021796,2]
[423180576,1779907845000,-927.27566594,0.00021688,2]
[423180579,1779907845000,-961.58486558,0.00021743,2]
[423180586,1779907845000,-114226.1456144,0.00021803,2]
[423180584,1779907845000,-500.0,0.00021802,2]
[423180583,1779907845000,-500.0,0.00021802,2]
[423180585,1779907845000,-23660.442639,0.00021803,2]
[423180588,1779907845000,-1800.0,0.000219,7]
[423180563,1779907845000,-500.0,0.00021643,2]
[423180577,1779907845000,-389.09621379,0.00021727,2]
[423180560,1779907845000,-350.0,0.00021608,2]
[423180539,1779907845000,-801.85129954,0.00021468,2]
[423180556,1779907845000,-154.0,0.0002152,2]
[423180533,1779907845000,-1071.02392,0.0002134,2]
[423180538,1779907845000,-31737.63388309,0.00021468,2]
[423180537,1779907845000,-6453.0,0.00021415,2]
[423180536,1779907845000,-773.24136889,0.00021413,2]
[423180534,1779907845000,-1071.02393,0.0002134,2]
[423180535,1779907845000,-745.65223615,0.00021358,2]
[423180589,1779907845000,-5000.0,0.00021918,2]
[423180540,1779907845000,-151.0,0.000215,2]
[423180543,1779907845000,-1000.0,0.000215,2]
[423180544,1779907845000,-1000.0,0.000215,2]
[423180545,1779907845000,-1000.0,0.000215,2]
[423180542,1779907845000,-1000.0,0.000215,2]
[423180561,1779907845000,-894.19061325,0.00021633,2]
[423180547,1779907845000,-1000.0,0.000215,2]
[423180546,1779907845000,-1000.0,0.000215,2]
[423180548,1779907845000,-1000.0,0.000215,2]
[423180549,1779907845000,-215.14828486,0.000215,2]
[423180551,1779907845000,-794.26208108,0.000215,2]
[423180552,1779907845000,-1407.64099139,0.000215,2]
[423180553,1779907845000,-330.0,0.00021507,3]
[423180554,1779907845000,-2000.0,0.0002152,2]
[423180555,1779907845000,-200.0,0.0002152,2]
[423180557,1779907845000,-200.0,0.0002152,2]
[423180559,1779907845000,-862.28603014,0.00021578,2]
[423180558,1779907845000,-831.51979762,0.00021523,2]
[423180562,1779907845000,-222.392196,0.00021641,2]
[423180550,1779907845000,-1545.9448655,0.000215,2]
[423180591,1779907845000,-200.0,0.00021953,2]
[423180541,1779907845000,-1000.0,0.000215,2]
[423180590,1779907845000,-17448.56359982,0.00021923,2]
[423180625,1779907845000,-4338.6257644,0.00022986,2]
[423180631,1779907845000,-531.0,0.00023,2]
[423180624,1779907845000,-2319.72410669,0.00022892,2]
[423180627,1779907845000,-379.0,0.00023,2]
[423180634,1779907845000,-317.0,0.00023,2]
[423180626,1779907845000,-353.43283768,0.00023,2]
[423180628,1779907845000,-278.0,0.00023,2]
[423180630,1779907845000,-333.0,0.00023,2]
[423180629,1779907845000,-335.0,0.00023,2]
[423180632,1779907845000,-229.0,0.00023,2]
[423180633,1779907845000,-511.0,0.00023,2]
[423180635,1779907845000,-290.0,0.00023,2]
[423180623,1779907845000,-1592.87721992,0.00022892,2]
[423180644,1779907845000,-474.48,0.00023171,2]
[423180638,1779907845000,-4338.6257644,0.00023018,2]
[423180641,1779907845000,-4338.6257644,0.00023075,2]
[423180645,1779907845000,-4338.6257644,0.00023195,2]
[423180640,1779907845000,-4338.6257644,0.00023064,2]
[423180646,1779907845000,-4338.6257644,0.0002326,2]
[423180636,1779907845000,-1200.0,0.00023,2]
[423180637,1779907845000,-301.0,0.00023,2]
[423180642,1779907845000,-4338.6257644,0.00023079,2]
[423180643,1779907845000,-474.48,0.00023107,2]
[423180647,1779907845000,-46247.84946388,0.0002326,2]
[423180648,1779907845000,-4309.50903408,0.00023301,2]
[423180649,1779907845000,-4338.6257644,0.00023304,2]
[423180639,1779907845000,-4338.6257644,0.00023053,2]
[423180620,1779907845000,-474.48,0.00022816,2]
[423180592,1779907845000,-160.0,0.00022,2]
[423180621,1779907845000,-532.03981831,0.00022871,2]
[423180593,1779907845000,-300.0,0.00022,2]
[423180597,1779907845000,-333.0,0.00022,2]
[423180594,1779907845000,-379.0,0.00022,2]
[423180595,1779907845000,-278.0,0.00022,2]
[423180598,1779907845000,-531.0,0.00022,2]
[423180596,1779907845000,-335.0,0.00022,2]
[423180599,1779907845000,-229.0,0.00022,2]
[423180601,1779907845000,-317.0,0.00022,2]
[423180606,1779907845000,-200.0,0.00022095,2]
[423180602,1779907845000,-290.0,0.00022,2]
[423180607,1779907845000,-759.77763547,0.00022162,2]
[423180600,1779907845000,-511.0,0.00022,2]
[423180610,1779907845000,-2236.95670847,0.00022344,2]
[423180618,1779907845000,-15000.0,0.0002276,2]
[423180609,1779907845000,-1536.04360648,0.00022344,2]
[423180603,1779907845000,-1200.0,0.00022,2]
[423180619,1779907845000,-4402.0,0.000228,2]
[423180617,1779907845000,-2155.29,0.00022466,2]
[423180622,1779907845000,-474.48,0.0002289,2]
[423180613,1779907845000,-350.0,0.00022405,2]
[423180615,1779907845000,-1094.74,0.00022466,2]
[423180616,1779907845000,-1905.66,0.00022466,2]
[423180612,1779907845000,-11300.21070912,0.0002237,2]
[423180608,1779907845000,-236.53,0.00022176,2]
[423180611,1779907845000,-993.2,0.00022353,2]
[423180605,1779907845000,-301.0,0.00022,2]
[423180604,1779907845000,-450.0,0.00022,2]
[423180614,1779907845000,-586.06,0.00022465,2]
[423180654,1779907846000,-4338.6257644,0.00023377,2]
[423180660,1779907846000,-200.0,0.00023447,2]
[423180653,1779907846000,-474.48,0.00023373,2]
[423180655,1779907846000,-4309.50903408,0.00023386,2]
[423180659,1779907846000,-2405.55389863,0.0002344,2]
[423180650,1779907846000,-4338.6257644,0.00023334,2]
[423180652,1779907846000,-4338.6257644,0.00023372,2]
[423180656,1779907846000,-4338.6257644,0.00023397,2]
[423180657,1779907846000,-4338.6257644,0.00023414,2]
[423180651,1779907846000,-4338.6257644,0.00023361,2]
[423180663,1779907846000,-4309.50903408,0.00023655,2]
[423180658,1779907846000,-1651.81367706,0.0002344,2]
[423180661,1779907846000,-5531.0,0.000235,3]
[423180664,1779907846000,-586.06,0.00023678,2]
[423180667,1779907846000,-1429.63065148,0.00023679,2]
[423180662,1779907846000,-9035.0,0.00023557,2]
[423180676,1779907846000,-1645.24000001,0.000217,2]
[423180675,1779907846000,-354.75999999,0.000217,2]
[423180674,1779907846000,-150.0,0.000128,7]
[423180677,1779907846000,-206.05950279,0.00023372,2]
[423180678,1779907846000,-2080.5100209,0.00023679,2]
[423180673,1779907846000,-13582.93701862,0.00023679,2]
[423180670,1779907846000,-430.54649741,0.00023679,2]
[423180668,1779907846000,-7494.16175073,0.00023679,2]
[423180669,1779907846000,-1424.82566439,0.00023679,2]
[423180672,1779907846000,-39813.13772422,0.00023679,2]
[423180671,1779907846000,-10529.5659,0.00023679,2]
[423180666,1779907846000,-293.42998532,0.00023678,2]
[423180665,1779907846000,-292.63001468,0.00023678,2]
[423180699,1779907881000,150.0,0.00013191,2]
[423180698,1779907881000,567.06680173,0.00013397,2]
[423180700,1779907895000,195.3636,0.00012956,2]
[423180701,1779907908000,215.46156935,0.00013599,2]
[423180702,1779907912000,40.60188147,0.00013599,2]
[423180703,1779907937000,-8396.07872184,0.00013198,2]
[423180704,1779907944000,-2400.0,0.00013198,2]
[423180705,1779907989000,-388.64287816,0.00013198,2]
[423180707,1779908043000,-1168.49385255,0.00013032,2]
[423180708,1779908044000,193.57,0.00025879,120]
[423180709,1779908063000,-632.15493354,0.00013032,2]
[423180710,1779908129000,233.34982497,0.0001,2]
[423180719,1779908341000,-1353.77621391,0.00013032,2]
[423180720,1779908353000,-182.287,0.00013032,2]
[423180723,1779908406000,-145.76510395,0.00013168,2]
[423180722,1779908406000,-208.97895572,0.00013141,2]
[423180721,1779908406000,-354.74405967,0.00013032,2]
[423180724,1779908460000,-215.46156935,0.00013195,2]
[423180725,1779908460000,-215.46156935,0.00013198,2]
[423180728,1779908502000,-300.0,0.00013198,2]
[423180729,1779908513000,-2284.53843065,0.00013198,2]
[423180732,1779908567000,-1562.45924428,0.00013199,2]
[423180731,1779908567000,-208.97895572,0.00013198,2]
[423180730,1779908567000,-1771.4382,0.00013198,2]
[423180733,1779908608000,-215.46156935,0.00013198,2]
[423180737,1779908662000,-2838.221,0.00013032,2]
[423180739,1779908715000,-182.287,0.00013032,2]
[423180741,1779908768000,-1200.0,0.00013198,2]
[423180744,1779908809000,-192.06721979,0.00013197,2]
[423180745,1779908822000,-92.93278021,0.00013197,2]
[423180746,1779908849000,150.87,6.859e-05,2]
[423180747,1779908849000,150.87,7.482e-05,2]
[423180751,1779908850000,150.87,9.976e-05,2]
[423180750,1779908850000,150.87,9.353e-05,2]
[423180749,1779908850000,150.87,8.729e-05,2]
[423180748,1779908850000,150.87,8.106e-05,2]
[423180753,1779908940000,1000.0,0.00027792,120]
[423180755,1779908945000,-134.76060382,0.00011223,2]
[423180754,1779908945000,-150.87,0.000106,2]
[423180757,1779909031000,-16.10939618,0.00011223,2]
[423180759,1779909031000,-150.87,0.00011847,2]
[423180758,1779909031000,-250.0,0.0001166,2]
[423180764,1779909031000,-150.87,0.00013094,2]
[423180761,1779909031000,-182.16060382,0.00013092,2]
[423180763,1779909031000,-1834.00939618,0.00013092,2]
[423180765,1779909031000,-108.03484322,0.00013198,2]
[423180760,1779909031000,-150.87,0.0001247,2]
[423180793,1779909037000,-1800.64878609,0.00013298,2]
[423180792,1779909037000,-3159.23901097,0.00013298,2]
[423180788,1779909037000,-300.0,0.00013297,2]
[423180791,1779909037000,-6837.50234069,0.00013298,2]
[423180790,1779909037000,-402.66127145,0.00013297,2]
[423180789,1779909037000,-369.18587289,0.00013297,2]
[423180786,1779909037000,-1000.0,0.00013297,2]
[423180787,1779909037000,-150.0,0.00013297,2]
[423180785,1779909037000,-1200.0,0.00013296,2]
[423180783,1779909037000,-2043.55515678,0.00013198,2]
[423180784,1779909037000,-215.46156935,0.00013288,2]
[423180794,1779909038000,-360.79439886,0.00013298,2]
[423180796,1779909038000,-18.78109669,0.00013298,2]
[423180795,1779909038000,-405.6036579,0.00013298,2]
[423180848,1779909040000,-500.0,0.00013698,2]
[423180851,1779909040000,-500.0,0.00013698,2]
[423180850,1779909040000,-513.45,0.00013698,2]
[423180855,1779909040000,-9999.99,0.00013699,2]
[423180853,1779909040000,-500.0,0.00013698,2]
[423180849,1779909040000,-513.45,0.00013698,2]
[423180846,1779909040000,-632.92032237,0.00013698,2]
[423180866,1779909040000,-4999.99,0.00013699,2]
[423180857,1779909040000,-18232.27,0.00013699,2]
[423180859,1779909040000,-9999.99,0.00013699,2]
[423180860,1779909040000,-3016.09,0.00013699,2]
[423180863,1779909040000,-499.99,0.00013699,2]
[423180862,1779909040000,-212326.13,0.00013699,2]
[423180864,1779909040000,-14184.25,0.00013699,2]
[423180858,1779909040000,-9999.99,0.00013699,2]
[423180856,1779909040000,-999.99,0.00013699,2]
[423180847,1779909040000,-500.0,0.00013698,2]
[423180844,1779909040000,-500.0,0.00013698,2]
[423180829,1779909040000,-728.01619053,0.00013298,2]
[423180830,1779909040000,-11171.62035482,0.00013298,2]
[423180831,1779909040000,-5333.6184774,0.00013298,2]
[423180833,1779909040000,-584183.25942266,0.00013298,2]
[423180834,1779909040000,-208.97895572,0.00013311,2]
[423180838,1779909040000,-500.0,0.00013698,2]
[423180843,1779909040000,-500.0,0.00013698,2]
[423180835,1779909040000,-15703.70723991,0.00013398,2]
[423180836,1779909040000,-29192.41348936,0.00013498,2]
[423180837,1779909040000,-500.0,0.00013698,2]
[423180840,1779909040000,-500.0,0.00013698,2]
[423180841,1779909040000,-549.42,0.00013698,2]
[423180842,1779909040000,-549.42,0.00013698,2]
[423180845,1779909040000,-500.0,0.00013698,2]
[423180839,1779909040000,-500.0,0.00013698,2]
[423180867,1779909040000,-9999.99,0.00013699,2]
[423180901,1779909040000,-29192.41348934,0.00015792,2]
[423180868,1779909040000,-150.99,0.00013699,2]
[423180887,1779909040000,-500.0,0.00014518,2]
[423180889,1779909040000,-1680.0,0.00014626,2]
[423180891,1779909040000,-250.0,0.00014669,2]
[423180888,1779909040000,-420.0,0.00014578,2]
[423180890,1779909040000,-7027.88,0.00014643,2]
[423180895,1779909040000,-1000.0,0.000149,5]
[423180886,1779909040000,-300.0,0.00014517,2]
[423180892,1779909040000,-1297.0,0.0001467,2]
[423180893,1779909040000,-500.0,0.00014792,2]
[423180897,1779909040000,-500.0,0.00015209,2]
[423180900,1779909040000,-200.0,0.0001574,2]
[423180899,1779909040000,-651.23797326,0.00015719,2]
[423180896,1779909040000,-628.80003031,0.00015066,2]
[423180865,1779909040000,-299.99,0.00013699,2]
[423180894,1779909040000,-3518.0,0.0001487,2]
[423180885,1779909040000,-199.0,0.00014504,2]
[423180898,1779909040000,-433.0,0.00015624,2]
[423180881,1779909040000,-150.0,0.00014344,2]
[423180869,1779909040000,-24999.99,0.00013699,2]
[423180884,1779909040000,-157.7,0.00014434,2]
[423180871,1779909040000,-494.83379466,0.00013699,2]
[423180870,1779909040000,-500.0,0.00013699,2]
[423180872,1779909040000,-500.0,0.00013699,2]
[423180874,1779909040000,-500.0,0.00013699,2]
[423180873,1779909040000,-500.0,0.00013699,2]
[423180902,1779909040000,-2639.5558975,0.00015819,2]
[423180875,1779909040000,-500.0,0.00013699,2]
[423180876,1779909040000,-500.0,0.00013699,2]
[423180883,1779909040000,-255.0,0.00014414,2]
[423180879,1779909040000,-7150.99,0.00014036,2]
[423180882,1779909040000,-5000.0,0.00014404,2]
[423180880,1779909040000,-160.0,0.00014075,2]
[423180877,1779909040000,-150.87,0.00013717,2]
[423180878,1779909040000,-250.0,0.00014,2]
[423180929,1779909041000,-500.0,0.00017676,2]
[423180930,1779909041000,-2000.0,0.00017676,2]
[423180931,1779909041000,-500.0,0.00017684,2]
[423180934,1779909041000,-9794.42,0.00017728,2]
[423180933,1779909041000,-3292.0,0.00017697,2]
[423180935,1779909041000,-2000.0,0.000179,6]
[423180932,1779909041000,-500.0,0.00017684,2]
[423180937,1779909041000,-350.0,0.00018,2]
[423180936,1779909041000,-166.66,0.00017974,2]
[423180939,1779909041000,-29192.41348934,0.00018087,2]
[423180938,1779909041000,-166.66,0.00018028,2]
[423180940,1779909041000,-166.66,0.00018323,2]
[423180941,1779909041000,-2016.17,0.00018329,2]
[423180944,1779909041000,-179.55771712,0.00018356,10]
[423180948,1779909041000,-166.66,0.00018586,2]
[423180949,1779909041000,-2000.0,0.000187,2]
[423180928,1779909041000,-166.66,0.00017625,2]
[423180943,1779909041000,-500.0,0.00018356,10]
[423180947,1779909041000,-15703.70723983,0.00018496,2]
[423180945,1779909041000,-1252.0,0.00018363,2]
[423180951,1779909041000,-324.0,0.0001921,2]
[423180952,1779909041000,-4609.0,0.00019467,2]
[423180942,1779909041000,-2010.0,0.00018356,2]
[423180946,1779909041000,-993.2,0.0001841,2]
[423180909,1779909041000,-500.0,0.00016419,2]
[423180926,1779909041000,-166.66,0.0001747,2]
[423180950,1779909041000,-166.66,0.00019145,2]
[423180905,1779909041000,-300.0,0.00016,2]
[423180903,1779909041000,-15703.70723983,0.00015947,2]
[423180904,1779909041000,-587.0,0.00015982,2]
[423180907,1779909041000,-500.0,0.00016115,2]
[423180908,1779909041000,-500.0,0.00016419,2]
[423180906,1779909041000,-2351.0,0.00016088,2]
[423180910,1779909041000,-549.42,0.00016419,2]
[423180912,1779909041000,-500.0,0.00016419,2]
[423180911,1779909041000,-500.0,0.00016419,2]
[423180913,1779909041000,-513.45,0.00016419,2]
[423180915,1779909041000,-221.96,0.000165,2]
[423180917,1779909041000,-180.50030314,0.00016519,2]
[423180914,1779909041000,-993.2,0.00016438,2]
[423180922,1779909041000,-166.66,0.00016912,2]
[423180916,1779909041000,-500.0,0.00016519,2]
[423180919,1779909041000,-166.66,0.00016578,2]
[423180920,1779909041000,-4582.0,0.00016659,5]
[423180918,1779909041000,-200.0,0.00016549,2]
[423180921,1779909041000,-12158.18453656,0.00016863,2]
[423180924,1779909041000,-736.0,0.0001694,2]
[423180923,1779909041000,-166.66,0.00016927,2]
[423180925,1779909041000,-166.66,0.00017276,2]
[423180927,1779909041000,-823.0,0.00017522,2]
[423180953,1779909041000,-2000.0,0.00019478,2]
[423180980,1779909041000,-694.89044229,0.000208,2]
[423180954,1779909041000,-651.23797326,0.00019645,2]
[423180984,1779909041000,-303.0,0.00021,2]
[423180988,1779909041000,-157.05429665,0.00021,2]
[423180987,1779909041000,-540.0,0.00021,2]
[423180986,1779909041000,-283.0,0.00021,2]
[423180985,1779909041000,-268.0,0.00021,2]
[423180990,1779909041000,-511.0,0.00021,2]
[423180989,1779909041000,-229.0,0.00021,2]
[423180991,1779909041000,-317.0,0.00021,2]
[423180992,1779909041000,-290.0,0.00021,2]
[423180994,1779909041000,-301.0,0.00021,2]
[423180983,1779909041000,-180.19502508,0.00021,2]
[423180995,1779909041000,-152.74589189,0.00021,2]
[423180996,1779909041000,-15703.70723983,0.00021045,2]
[423181000,1779909041000,-174.61919141,0.00021099,2]
[423180999,1779909041000,-1428.38747117,0.00021099,2]
[423180997,1779909041000,-693.39197629,0.00021099,2]
[423180998,1779909041000,-2080.17592889,0.00021099,2]
[423181002,1779909041000,-721.12765534,0.00021099,2]
[423181004,1779909041000,-694.89044229,0.000211,2]
[423181003,1779909041000,-157.54978746,0.00021099,2]
[423181005,1779909041000,-1273.34717135,0.000211,2]
[423180955,1779909041000,-166.66,0.00019703,2]
[423180993,1779909041000,-480.0,0.00021,2]
[423180982,1779909041000,-2000.0,0.000209,2]
[423181001,1779909041000,-200.0,0.00021099,2]
[423180978,1779909041000,-193.57,0.00020703,2]
[423180957,1779909041000,-303.0,0.0002,2]
[423180962,1779909041000,-229.0,0.0002,2]
[423180958,1779909041000,-268.0,0.0002,2]
[423180961,1779909041000,-155.0,0.0002,2]
[423180960,1779909041000,-540.0,0.0002,2]
[423180956,1779909041000,-2129.0,0.00019906,2]
[423180964,1779909041000,-317.0,0.0002,2]
[423180963,1779909041000,-511.0,0.0002,2]
[423180966,1779909041000,-480.0,0.0002,2]
[423180981,1779909041000,-1407.64099139,0.000208,2]
[423180965,1779909041000,-290.0,0.0002,2]
[423180959,1779909041000,-283.0,0.0002,2]
[423180970,1779909041000,-10155.32192017,0.000203,2]
[423180968,1779909041000,-22304.71,0.0002,2]
[423180979,1779909041000,-180.19502508,0.000208,2]
[423180977,1779909041000,-1407.64099139,0.000206,2]
[423180976,1779909041000,-694.89044229,0.000206,2]
[423180975,1779909041000,-180.19502508,0.000206,2]